bitfinex/quotes_SOLUSD_20260213
["timestamp","ask_amount","ask_price","bid_price","bid_amount"]
[1770952295597,1.09958634,79.093,79.077,1.10758263]
[1770952297596,37.98,79.094,79.078,12.64574217]
[1770952297829,37.98,79.094,79.079,1.10758263]
[1770952299014,1.10253956,79.103,79.081,1.10758263]
[1770952299304,44.22709982,79.137,79.091,1.10758263]
[1770952299305,1.10253956,79.113,79.091,1.10758263]
[1770952300416,1.10253956,79.127,79.093,1.10758263]
[1770952300617,1.10253956,79.127,79.092,12.64350376]
[1770952300618,1.10253956,79.127,79.101,1.10758263]
[1770952303423,1.10253956,79.127,79.102,12.64190538]
[1770952304218,1.10253956,79.127,79.09,3.94113738]
[1770952304219,1.10253956,79.119,79.094,12.64308726]
[1770952304830,1.10253956,79.119,79.095,1.10758263]
[1770952305531,1.10253956,79.119,79.094,12.64308726]
[1770952308038,1.10253956,79.119,79.094,1.10758263]
[1770952309225,1.10253956,79.119,79.078,54.92]
[1770952309226,1.10253956,79.109,79.086,1.10758263]
[1770952309932,1.10253956,79.109,79.081,1.10758263]
[1770952310927,1.10253956,79.114,79.081,1.10758263]
[1770952311229,1.10253956,79.114,79.093,1.10758263]
[1770952312826,1.10253956,79.114,79.095,1.10758263]
[1770952317865,1.10253956,79.114,79.09,1.10758263]
[1770952319659,1.10253956,79.114,79.092,1.10758263]
[1770952320539,1.09075941,79.109,79.072,1.05191633]
[1770952321066,1.09075941,79.109,79.073,1.05191633]
[1770952321430,1.09075941,79.109,79.081,1.05191633]
[1770952321639,1.09075941,79.109,79.072,44.26345609]
[1770952321640,1.09075941,79.129,79.093,1.05191633]
[1770952322052,1.09075941,79.129,79.101,1.05191633]
[1770952322275,1.09075941,79.129,79.1,3.94113738]
[1770952322276,1.09075941,79.129,79.082,1.05191633]
[1770952322465,1.09075941,79.129,78.652,227.55420409]
[1770952322466,1.09075941,79.109,79.077,1.05191633]
[1770952328067,1.09075941,79.107,79.079,1.05191633]
[1770952330381,1.09075941,79.099,79.074,1.05191633]
[1770952330683,1.09075941,79.099,79.073,12.64649242]
[1770952331482,1.09075941,79.099,79.073,1.05191633]
[1770952332192,248.21237569,79.544,79.081,1.05191633]
[1770952332193,1.09075941,79.119,79.081,1.05191633]
[1770952333895,1.09075941,79.119,79.083,1.05191633]
[1770952336895,1.09075941,79.119,79.084,12.64478276]
[1770952337095,1.09075941,79.119,79.085,1.05191633]
[1770952340396,1.09075941,79.119,79.087,1.05191633]
[1770952341995,12.63934882,79.118,79.087,1.05191633]
[1770952342169,1.09075941,79.117,79.087,1.05191633]
[1770952343096,1.09075941,79.117,79.089,1.05191633]
[1770952344369,1.09075941,79.109,79.088,12.64414323]
[1770952345198,1.09075941,79.109,79.085,1.05191633]
[1770952351098,1.09075941,79.109,79.087,0.99801596]
[1770952357095,1.09805566,79.107,79.087,0.99801596]
[1770952358400,1.09805566,79.107,79.089,1.04943871]
[1770952373011,38.42,79.11,79.089,1.04943871]
[1770952373412,39.51805566,79.11,79.089,1.04943871]
[1770952373597,39.51805566,79.11,79.09,1.04943871]
[1770952373793,1.09805566,79.109,79.09,1.04943871]
[1770952374515,38.42,79.11,79.09,1.04943871]
[1770952374810,1.09805566,79.109,79.09,1.04943871]
[1770952377395,1.09805566,79.107,79.082,1.04943871]
[1770952379317,1.09805566,79.107,79.084,1.04943871]
[1770952380113,38.46,79.11,79.084,1.04943871]
[1770952381010,1.08349341,79.113,79.084,1.04943871]
[1770952381211,39.60349341,79.112,79.086,1.00500995]
[1770952381414,1.08349341,79.111,79.086,1.00500995]
[1770952381723,1.08349341,79.111,79.085,12.64462287]
[1770952382021,1.08349341,79.111,79.085,13.64963282]
[1770952382216,1.08349341,79.111,79.086,1.00500995]
[1770952382697,38.56,79.11,79.086,1.00500995]
[1770952382902,1.08349341,79.109,79.086,1.00500995]
[1770952383620,1.08349341,79.109,79.088,1.00500995]
[1770952384004,38.56,79.11,79.088,1.00500995]
[1770952385225,39.64349341,79.11,79.088,1.00500995]
[1770952385727,1.08349341,79.11,79.088,1.00500995]
[1770952386322,38.6,79.111,79.091,1.00500995]
[1770952386523,38.6,79.116,79.091,1.00500995]
[1770952386923,1.08349341,79.121,79.091,1.00500995]
[1770952387307,38.6,79.123,79.091,1.00500995]
[1770952387521,39.68349341,79.125,79.091,1.00500995]
[1770952388704,39.68349341,79.125,79.101,1.00500995]
[1770952388930,38.6,79.125,79.101,1.00500995]
[1770952389628,1.08349341,79.135,79.111,1.00500995]
[1770952389828,38.6,79.134,79.111,1.00500995]
[1770952390924,1.08349341,79.133,79.113,1.00500995]
[1770952393730,1.08349341,79.133,79.115,1.00500995]
[1770952397438,1.08349341,79.133,79.116,12.63966833]
[1770952397732,1.08349341,79.133,79.117,1.00500995]
[1770952399738,1.08349341,79.133,79.116,12.63966833]
[1770952399930,1.08349341,79.133,79.117,1.00500995]
[1770952400235,1.08349341,79.137,79.117,1.00500995]
[1770952401322,1.08349341,79.137,79.118,12.63934882]
[1770952401528,1.08349341,79.137,79.119,1.00500995]
[1770952401742,0.2,79.14,79.121,1.00500995]
[1770952403734,0.2,79.14,79.123,1.00500995]
[1770952405846,0.2,79.14,79.125,1.00500995]
[1770952408140,0.2,79.14,79.127,1.00500995]
[1770952409228,0.2,79.14,79.129,1.00500995]
[1770952411247,1e-08,79.14,79.131,1.04819874]
[1770952412646,1e-08,79.14,79.133,1.04819874]
[1770952413855,1e-08,79.14,79.134,13.67999718]
[1770952416235,1.03448084,79.139,79.117,31.59876941]
[1770952418356,1.03448084,79.139,79.117,45.28148188]
[1770952419663,1.03448084,79.139,79.118,1.0432039]
[1770952421775,1.03448084,79.139,79.119,12.63918906]
[1770952422373,1.03448084,79.139,79.119,13.68239296]
[1770952423285,1.03448084,79.139,79.12,1.0432039]
[1770952423458,1.03448084,79.139,79.121,1.0432039]
[1770952424969,1.03448084,79.139,79.11,3.93384446]
[1770952425578,1.03448084,79.139,79.111,1.0432039]
[1770952426069,1.03448084,79.139,79.11,3.93384446]
[1770952426070,1.03448084,79.139,79.113,1.0432039]
[1770952426853,1.03448084,79.139,79.114,44.23995752]
[1770952427054,1.03448084,79.139,79.121,1.0432039]
[1770952427982,1.03448084,79.139,79.12,3.93384446]
[1770952428280,1.03448084,79.139,79.119,1.0432039]
[1770952429271,1.03448084,79.139,79.12,17.61607768]
[1770952430064,1.03448084,79.139,79.12,12.63902932]
[1770952430859,1e-08,79.14,79.104,12.64149236]
[1770952430860,1.03448084,79.137,79.104,12.64149236]
[1770952431071,1.03448084,79.129,79.104,12.64149236]
[1770952431276,1.03448084,79.119,79.087,12.64426413]
[1770952431476,3.93384446,79.11,79.087,12.64426413]
[1770952431780,1.03448084,79.109,79.087,12.64426413]
[1770952432282,1.03448084,79.109,79.083,12.64484921]
[1770952432591,1.03448084,79.107,79.071,12.64686168]
[1770952432759,1.03448084,79.099,79.071,12.64686168]
[1770952434771,1.03448084,79.099,79.071,1.0432039]
[1770952438259,1.03448084,79.099,79.066,31.61908228]
[1770952438260,1.03448084,79.099,79.072,12.64670174]
[1770952441989,1.03448084,79.099,79.072,13.62201432]
[1770952442286,1.03448084,79.099,79.073,0.97531258]
[1770952442882,1.03448084,79.099,79.074,12.64638187]
[1770952443075,1.03448084,79.099,79.075,0.97531258]
[1770952443271,31.59985564,79.115,79.081,0.97531258]
[1770952443272,0.99033661,79.11,79.081,0.97531258]
[1770952444176,4.92418107,79.11,79.081,0.97531258]
[1770952444379,0.99033661,79.109,79.081,0.97531258]
[1770952444971,0.99033661,79.109,79.082,12.64510255]
[1770952445771,0.99033661,79.107,79.075,12.64606999]
[1770952445972,0.99033661,79.099,79.075,12.64606999]
[1770952448678,0.99033661,79.099,79.075,0.97531258]
[1770952453691,3.93384446,79.11,79.077,0.97531258]
[1770952453998,0.99033661,79.122,79.091,0.97531258]
[1770952454191,0.99033661,79.119,79.091,0.97531258]
[1770952456182,0.99033661,79.119,79.093,0.97531258]
[1770952459275,0.99033661,79.119,79.095,0.97531258]
[1770952462005,0.99033661,79.139,79.111,0.97531258]
[1770952463498,0.99033661,79.139,79.113,0.97531258]
[1770952466383,0.99033661,79.139,79.106,12.64120857]
[1770952466589,0.99033661,79.129,79.106,12.64120857]
[1770952466897,0.99033661,79.129,79.102,12.64182852]
[1770952468403,0.99033661,79.127,79.096,12.64275514]
[1770952468589,3.93599812,79.12,79.096,12.64275514]
[1770952468898,0.99033661,79.119,79.096,12.64275514]
[1770952469098,0.99033661,79.119,79.096,13.61806772]
[1770952469306,0.99033661,79.119,79.097,0.97531258]
[1770952473711,0.99033661,79.119,79.098,12.64254469]
[1770952475214,0.99033661,79.119,79.098,0.9900753]
[1770952480699,1.02691095,79.109,79.087,12.64425063]
[1770952482314,1.02691095,79.109,79.083,12.64494265]
[1770952482912,1.02691095,79.109,79.083,13.63501795]
[1770952484731,1.02691095,79.107,79.072,0.9900753]
[1770952488528,1.02691095,79.099,79.074,0.9900753]
[1770952491422,1.02691095,79.099,79.07,4.21654354]
[1770952491423,1.02691095,79.121,79.076,0.9900753]
[1770952491624,12.63870984,79.122,79.081,0.9900753]
[1770952491625,1.02691095,79.119,79.081,0.9900753]
[1770952492924,1.02691095,79.117,79.083,0.9900753]
[1770952495310,1.02691095,79.115,79.085,0.9900753]
[1770952496028,1.02691095,79.109,79.085,0.9900753]
[1770952497331,1.02691095,79.109,79.07,54.58]
[1770952497332,1.02691095,79.089,79.041,12.65166179]
[1770952497544,94.80709914,79.108,79.03,12.65334861]
[1770952497545,1.02691095,79.049,79.03,12.65334861]
[1770952497732,1.02691095,79.049,79.028,0.9900753]
[1770952498516,4.21654354,79.04,79.028,0.9900753]
[1770952498717,4.21654354,79.04,79.028,13.64366301]
[1770952498927,1.02691095,79.049,79.029,0.9900753]
[1770952499130,4.21654354,79.05,79.029,0.9900753]
[1770952499429,4.21654354,79.05,79.031,0.9900753]
[1770952500011,5.24345449,79.05,79.031,0.9900753]
[1770952500211,1.02691095,79.079,79.032,0.9900753]
[1770952500433,4.21654354,79.06,79.032,0.9900753]
[1770952501532,5.20196183,79.06,79.034,0.95958567]
[1770952503229,4.21654354,79.06,79.034,0.95958567]
[1770952503534,4.21654354,79.05,79.036,0.95958567]
[1770952503738,0.98541829,79.049,79.035,12.65262225]
[1770952504038,4.21654354,79.05,79.035,13.61220792]
[1770952504542,4.21654354,79.05,79.036,0.95958567]
[1770952504717,4.21654354,79.05,79.02,0.1]
[1770952504718,0.98541829,79.049,79.024,0.95958567]
[1770952505635,0.98541829,79.049,79.026,0.95958567]
[1770952506919,0.98541829,79.049,79.025,12.65418061]
[1770952506920,0.98541829,79.049,79.028,0.95958567]
[1770952508844,4.21654354,79.05,79.03,0.95958567]
[1770952509051,31.61465131,79.078,79.03,0.95958567]
[1770952509052,0.98541829,79.059,79.03,0.95958567]
[1770952509223,4.21654354,79.05,79.03,0.95958567]
[1770952510628,0.98541829,79.039,79.02,0.1]
[1770952510823,0.98541829,79.039,79.02,1.05958567]
[1770952511028,0.98541829,79.039,79.021,0.95958567]
[1770952512251,0.98541829,79.039,79.022,12.65470375]
[1770952514433,0.98541829,79.039,79.02,0.1]
[1770952517436,0.98541829,79.039,79.02,1.05958567]
[1770952519153,0.98541829,79.039,79.02,0.1]
[1770952523954,4.22626818,79.03,79.02,0.1]
[1770952524339,0.98541829,79.029,79.02,0.1]
[1770952526253,4.22626818,79.03,79.02,0.1]
[1770952530161,4.22626818,79.03,79.02,1.05958567]
[1770952530358,4.22626818,79.03,79.02,0.1]
[1770952530573,0.96795262,79.029,79.02,0.1]
[1770952533464,0.96795262,79.029,79.005,0.98326902]
[1770952533664,4.22626818,79.02,79.005,0.98326902]
[1770952533852,1.02204077,79.022,79.005,0.98326902]
[1770952534051,1.02204077,79.029,79.005,0.98326902]
[1770952537376,4.22626818,79.02,79.005,0.98326902]
[1770952539163,1.02204077,79.021,79.005,0.98326902]
[1770952539470,1.02204077,79.021,79.003,12.65767923]
[1770952539471,1.02204077,79.013,79.0,0.1]
[1770952540170,1.02204077,78.999,78.972,0.97650765]
[1770952540345,4.22626818,78.99,78.972,0.97650765]
[1770952540971,39.32,79.002,78.972,0.97650765]
[1770952541160,1.02204077,79.009,78.972,0.97650765]
[1770952541366,1.02204077,79.009,78.973,44.31894444]
[1770952541561,1.02204077,79.009,78.974,0.97650765]
[1770952542570,1.02204077,79.009,78.976,0.97650765]
[1770952545170,1.02204077,79.009,78.978,0.97650765]
[1770952545974,4.22626818,79.05,78.977,12.66191422]
[1770952545975,4.22626818,79.02,78.981,0.97650765]
[1770952546278,1.02204077,79.027,78.991,0.97650765]
[1770952547056,1.02204077,79.025,78.993,0.97650765]
[1770952548476,1.02204077,79.035,79.001,0.97650765]
[1770952549273,1.02204077,79.035,79.003,0.97650765]
[1770952550659,1.02204077,79.035,79.002,44.30267587]
[1770952550861,1.02204077,79.029,79.002,44.30267587]
[1770952551060,1.02204077,79.029,79.003,0.97650765]
[1770952551263,1.02204077,79.029,79.005,0.97650765]
[1770952552286,1.02204077,79.039,79.005,0.97650765]
[1770952553986,1.02204077,79.039,79.007,0.97650765]
[1770952555282,1.02204077,79.039,79.011,0.97650765]
[1770952556489,1.02204077,79.039,79.013,0.97650765]
[1770952557387,1.02204077,79.039,79.014,12.65598501]
[1770952557695,1.02204077,79.039,79.015,0.97650765]
[1770952560489,1.02204077,79.039,79.016,12.65566467]
[1770952560691,0.93106879,79.051,79.021,0.96658127]
[1770952560897,0.93106879,79.073,79.041,0.96658127]
[1770952561076,0.93106879,79.069,79.041,0.96658127]
[1770952561392,0.93106879,79.069,79.043,0.96658127]
[1770952564478,0.93106879,79.069,79.04,4.22626818]
[1770952564479,0.93106879,79.067,79.045,0.96658127]
[1770952572506,31.61282037,79.082,79.025,54.56]
[1770952572507,0.93106879,79.089,79.061,0.96658127]
[1770952573713,0.93106879,79.089,79.063,0.96658127]
[1770952573913,0.93106879,79.099,79.071,0.96658127]
[1770952574089,0.93106879,79.098,79.071,0.96658127]
[1770952574703,0.93106879,79.089,79.05,4.22626818]
[1770952574920,0.93106879,79.069,79.028,0.96658127]
[1770952575208,0.93106879,79.059,79.031,0.96658127]
[1770952575613,0.93106879,79.059,79.033,0.96658127]
[1770952576298,0.93106879,79.076,79.05,4.22626818]
[1770952576493,0.93106879,79.081,79.051,0.96658127]
[1770952576891,0.93106879,79.079,79.051,0.96658127]
[1770952578496,0.93106879,79.069,79.04,0.96658127]
[1770952578712,0.93106879,79.069,79.022,0.96658127]
[1770952578893,0.93106879,79.049,79.016,0.96658127]
[1770952579093,0.93106879,79.049,79.021,0.96658127]
[1770952579613,0.93106879,79.049,79.015,12.65582484]
[1770952579614,0.93106879,79.049,79.015,13.62240611]
[1770952579816,0.93106879,79.039,79.011,13.62304682]
[1770952580125,0.93106879,79.049,79.021,0.96658127]
[1770952580310,0.93106879,79.055,79.021,0.96658127]
[1770952580509,13.58054916,79.055,79.023,0.96658127]
[1770952580707,0.93106879,79.054,79.023,0.96658127]
[1770952581394,0.93106879,79.049,79.017,0.96658127]
[1770952581821,0.93106879,79.039,79.017,0.96658127]
[1770952582312,0.93106879,79.039,79.01,4.22154687]
[1770952582492,0.93106879,79.039,79.013,0.96658127]
[1770952584605,4.22154687,79.05,79.015,0.96658127]
[1770952584606,0.93106879,79.046,79.015,0.96658127]
[1770952584917,12.64993359,79.052,79.021,0.96658127]
[1770952585696,0.93106879,79.061,79.031,0.96658127]
[1770952586497,0.93106879,79.049,79.021,0.96658127]
[1770952586716,0.93106879,79.049,79.022,0.96658127]
[1770952588225,0.93106879,79.056,79.022,0.96658127]
[1770952589499,0.93106879,79.056,79.024,0.96658127]
[1770952591520,0.93106879,79.056,79.031,0.99761343]
[1770952591694,0.95991681,79.083,79.041,0.99761343]
[1770952591898,31.61212473,79.084,79.041,0.99761343]
[1770952591899,0.95991681,79.079,79.041,0.99761343]
[1770952593099,0.95991681,79.069,79.041,0.99761343]
[1770952593603,0.94594889,79.067,79.033,0.98931656]
[1770952595413,0.94594889,79.067,79.041,0.98931656]
[1770952595818,0.94594889,79.067,79.043,0.98931656]
[1770952597701,0.94594889,79.067,79.044,12.65118162]
[1770952598017,0.94594889,79.067,79.045,0.98931656]
[1770952600818,0.94594889,79.067,79.034,12.65278234]
[1770952601024,0.94594889,79.067,79.041,0.98931656]
[1770952601705,0.94594889,79.065,79.041,0.98931656]
[1770952602405,0.94594889,79.065,79.04,12.65181943]
[1770952603119,0.94594889,79.065,79.034,0.98931656]
[1770952603120,12.64798138,79.064,79.034,0.98931656]
[1770952603326,0.94594889,79.059,79.034,0.98931656]
[1770952603514,0.94594889,79.059,79.033,12.6528715]
[1770952604627,0.94594889,79.057,79.031,13.6425792]
[1770952605225,0.94594889,79.057,79.032,0.98931656]
[1770952606522,0.94594889,79.057,79.034,0.98931656]
[1770952608143,5.16749576,79.07,79.034,0.98931656]
[1770952608433,0.94594889,79.074,79.041,0.98931656]
[1770952609010,44.26233654,79.074,79.025,54.46]
[1770952609207,0.94594889,79.059,79.027,0.98931656]
[1770952610345,0.94594889,79.069,79.031,0.98931656]
[1770952610543,0.94594889,79.069,79.041,0.98931656]
[1770952611129,0.94594889,79.069,79.042,12.65150173]
[1770952611331,0.94594889,79.069,79.043,0.98931656]
[1770952612347,0.94594889,79.067,79.043,0.98931656]
[1770952613354,0.94594889,79.07,79.045,0.98931656]
[1770952615435,12.64664895,79.073,79.047,0.98931656]
[1770952615850,12.645929,79.077,79.047,0.98931656]
[1770952616051,0.94594889,79.076,79.047,0.98931656]
[1770952617360,0.94594889,79.074,79.047,0.98931656]
[1770952617673,0.94594889,79.069,79.047,0.98931656]
[1770952622047,0.99496751,79.075,79.047,0.98931656]
[1770952627344,4.22154687,79.09,79.051,1.00361699]
[1770952627549,4.22154687,79.09,79.048,12.65054144]
[1770952627550,0.99496751,79.088,79.061,1.00361699]
[1770952628149,0.99496751,79.088,79.06,4.22154687]
[1770952628150,0.99496751,79.094,79.071,1.00361699]
[1770952629277,0.99496751,79.094,79.073,1.00361699]
[1770952630170,0.99496751,79.094,79.074,12.64638187]
[1770952630468,0.99496751,79.094,79.075,1.00361699]
[1770952631273,0.2,79.1,79.081,1.00361699]
[1770952631846,1.19496751,79.1,79.081,1.00361699]
[1770952632273,1.19496751,79.1,79.082,12.64510255]
[1770952632467,1.19496751,79.1,79.082,13.64871954]
[1770952634454,0.99496751,79.099,79.064,1.00361699]
[1770952634860,0.99496751,79.099,79.071,1.00361699]
[1770952635059,0.99496751,79.099,79.063,44.26849473]
[1770952635060,0.2,79.1,79.081,1.00361699]
[1770952635987,39.74,79.111,79.082,1.00361699]
[1770952636180,39.74,79.111,79.084,1.00361699]
[1770952636181,0.99496751,79.11,79.084,1.00361699]
[1770952637094,0.99496751,79.109,79.084,1.00361699]
[1770952637287,0.99496751,79.109,79.083,12.64494265]
[1770952638781,4.22154687,79.11,79.074,12.64628237]
[1770952638782,0.99496751,79.107,79.074,12.64628237]
[1770952639189,0.99496751,79.107,79.075,1.00361699]
[1770952644587,0.99496751,79.105,79.077,1.00361699]
[1770952647289,0.99496751,79.103,79.077,1.00361699]
[1770952647690,0.99496751,79.103,79.079,1.00361699]
[1770952649586,0.99496751,79.101,79.079,1.00361699]
[1770952650671,0.99496751,79.101,79.075,0.96224379]
[1770952650887,0.9675819,79.099,79.075,0.96224379]
[1770952652316,0.9675819,79.109,79.077,0.96224379]
[1770952652594,0.9675819,79.109,79.081,0.96224379]
[1770952653190,0.9675819,79.108,79.081,0.96224379]
[1770952655296,0.9675819,79.108,79.083,0.98680136]
[1770952657986,0.951252,79.106,79.083,0.98680136]
[1770952658179,0.951252,79.106,79.084,0.98680136]
[1770952661195,0.951252,79.106,79.078,0.98680136]
[1770952661500,0.951252,79.106,79.074,0.98680136]
[1770952662381,0.951252,79.106,79.075,12.64622194]
[1770952662702,0.951252,79.106,79.076,0.98680136]
[1770952663306,0.951252,79.132,79.081,0.98680136]
[1770952663489,0.951252,79.137,79.11,4.21906721]
[1770952663687,0.951252,79.137,79.111,0.98680136]
[1770952665104,0.951252,79.137,79.113,0.98680136]
[1770952665399,1e-08,79.14,79.113,0.98680136]
[1770952665719,1e-08,79.14,79.121,0.98680136]
[1770952666598,0.951252,79.139,79.098,0.98680136]
[1770952666781,0.951252,79.129,79.101,0.98680136]
[1770952669782,0.951252,79.129,79.102,12.64190538]
[1770952669986,0.951252,79.129,79.103,0.98680136]
[1770952672704,0.951252,79.129,79.105,0.98680136]
[1770952676118,0.951252,79.127,79.091,13.63046498]
[1770952676291,0.951252,79.119,79.092,0.98680136]
[1770952676489,40.04,79.118,79.081,0.98680136]
[1770952676718,0.951252,79.109,79.081,0.98680136]
[1770952677088,0.951252,79.109,79.084,0.98680136]
[1770952677288,0.951252,79.125,79.091,0.98680136]
[1770952677490,0.951252,79.125,79.083,12.64489794]
[1770952677491,0.951252,79.13,79.101,0.98680136]
[1770952677701,0.951252,79.129,79.101,0.98680136]
[1770952679113,0.951252,79.129,79.103,0.98680136]
[1770952679487,1e-08,79.14,79.111,0.98680136]
[1770952679815,4.21906722,79.14,79.111,0.98680136]
[1770952679993,0.951252,79.139,79.111,0.98680136]
[1770952680802,0.96423097,79.138,79.111,0.98680136]
[1770952681594,0.96423097,79.138,79.112,13.58474632]
[1770952682123,0.96423097,79.138,79.113,0.94443891]
[1770952683517,0.96423097,79.138,79.114,12.63998786]
[1770952683726,0.96423097,79.138,79.115,0.94443891]
[1770952685519,0.96423097,79.138,79.117,0.94443891]
[1770952686214,0.96423097,79.129,79.101,0.94443891]
[1770952687221,0.96423097,79.129,79.103,0.94443891]
[1770952687413,4.21906721,79.12,79.103,0.94443891]
[1770952688004,0.96423097,79.122,79.103,0.94443891]
[1770952691526,0.96423097,79.129,79.105,0.94443891]
[1770952693214,0.96423097,79.128,79.1,12.64215768]
[1770952693821,0.96423097,79.119,79.093,13.58769203]
[1770952695516,1e-08,79.14,79.111,0.94443891]
[1770952696434,4.21906722,79.14,79.111,0.94443891]
[1770952697132,5.18329819,79.14,79.111,0.94443891]
[1770952697517,12.63599489,79.139,79.113,0.94443891]
[1770952697833,0.96423097,79.138,79.113,0.94443891]
[1770952701027,0.96423097,79.138,79.114,12.63998786]
[1770952701220,0.96423097,79.138,79.115,0.94443891]
[1770952706734,0.96423097,79.138,79.11,0.94443891]
[1770952706735,0.96423097,79.129,79.11,0.94443891]
[1770952707822,0.96423097,79.139,79.11,0.94443891]
[1770952709631,0.96423097,79.139,79.112,0.94443891]
[1770952710973,1e-08,79.14,79.112,0.94443891]
[1770952711244,1e-08,79.14,79.121,0.96099577]
[1770952711757,1e-08,79.14,79.123,0.96099577]
[1770952713447,0.2,79.16,79.15,0.92785456]
[1770952713743,0.2,79.16,79.122,34.92]
[1770952713744,0.91350268,79.159,79.122,34.92]
[1770952714629,4.41493411,79.17,79.13,4.21493411]
[1770952715549,4.41493411,79.17,79.142,0.92785456]
[1770952716138,0.2,79.17,79.142,0.92785456]
[1770952716744,0.2,79.18,79.15,4.21493411]
[1770952717047,0.2,79.18,79.161,0.92785456]
[1770952717847,0.2,79.18,79.163,0.92785456]
[1770952718949,0.2,79.19,79.164,0.92785456]
[1770952719273,0.2,79.19,79.171,0.92785456]
[1770952719747,0.2,79.19,79.172,44.20754811]
[1770952720049,0.2,79.19,79.173,0.92785456]
[1770952720850,1e-08,79.19,79.173,0.92785456]
[1770952723747,1e-08,79.19,79.174,12.63040897]
[1770952724049,1e-08,79.19,79.175,0.92785456]
[1770952726055,12.62452066,79.211,79.17,58.15493411]
[1770952726056,0.91350268,79.224,79.196,0.76997935]
[1770952726350,0.91350268,79.224,79.196,0.56997935]
[1770952727136,0.91350268,79.224,79.197,12.62674091]
[1770952727555,0.91350268,79.224,79.197,44.19359318]
[1770952727964,1.11350268,79.22,79.197,44.19359318]
[1770952728538,1.11350268,79.22,79.197,44.76540799]
[1770952728960,1.11350268,79.22,79.199,44.19247717]
[1770952729160,0.91350268,79.219,79.199,12.62642205]
[1770952729350,0.2,79.22,79.2,0.57181481]
[1770952730659,0.2,79.22,79.202,0.57299067]
[1770952731765,0.2,79.23,79.211,0.57356221]
[1770952732749,0.2,79.23,79.212,13.1984824]
[1770952733151,1.11350268,79.23,79.212,12.62434984]
[1770952733857,5.32843679,79.23,79.202,12.62594378]
[1770952734057,0.91350268,79.229,79.202,12.62594378]
[1770952734364,0.91350268,79.229,79.203,0.5746981]
[1770952734564,0.91350268,79.229,79.202,12.62594378]
[1770952735467,0.91350268,79.229,79.202,13.20121741]
[1770952736248,0.91350268,79.229,79.202,12.62594378]
[1770952736649,4.21493411,79.22,79.198,54.06]
[1770952736948,0.91350268,79.219,79.198,54.06]
[1770952738051,0.91350268,79.209,79.173,0.57691936]
[1770952738270,0.91350268,79.199,79.173,0.57691936]
[1770952738444,0.91350268,79.199,79.171,12.63088757]
[1770952738963,0.91350268,79.206,79.172,0.57744785]
[1770952739174,0.91350268,79.206,79.171,44.2081065]
[1770952739175,0.91350268,79.209,79.181,0.57744785]
[1770952740379,0.91350268,79.209,79.183,0.57797652]
[1770952741388,0.91350268,79.209,79.182,12.62913288]
[1770952741558,1.00679201,79.199,79.182,12.62913288]
[1770952741877,4.21493411,79.2,79.182,12.62913288]
[1770952742076,1.00679201,79.218,79.184,0.57952812]
[1770952742248,1.00679201,79.218,79.186,0.57952812]
[1770952742453,1.00679201,79.218,79.191,0.58003437]
[1770952742660,1.00679201,79.229,79.191,0.58003437]
[1770952743079,1.00679201,79.219,79.191,0.58003437]
[1770952743676,1.00679201,79.209,79.187,54.1]
[1770952743880,1.00679201,79.199,79.173,13.21110218]
[1770952744377,1.00679201,79.199,79.173,12.6305685]
[1770952745175,1.00679201,79.207,79.174,0.58102988]
[1770952745362,1.00679201,79.207,79.173,12.6305685]
[1770952745363,1.00679201,79.207,79.176,0.58151522]
[1770952746551,1.00679201,79.205,79.177,12.6299304]
[1770952746760,1.00679201,79.199,79.177,12.6299304]
[1770952749386,1.00679201,79.199,79.177,13.21288112]
[1770952750763,1.00679201,79.199,79.179,12.62961138]
[1770952751081,1.00679201,79.199,79.18,0.58388145]
[1770952752156,1.00679201,79.199,79.181,12.62929238]
[1770952760890,1.00679201,79.199,79.176,13.21829068]
[1770952761966,1.00679201,79.199,79.175,54.12]
[1770952762189,1.00679201,79.194,79.175,67.33869772]
[1770952764671,1.00679201,79.194,79.176,0.58978815]
[1770952766295,1.00679201,79.209,79.176,0.58978815]
[1770952766597,1.00679201,79.199,79.177,12.6299304]
[1770952766799,1.00679201,79.199,79.178,0.59056747]
[1770952767593,1.00679201,79.199,79.179,12.62961138]
[1770952767779,1.00679201,79.199,79.18,0.59094154]
[1770952769180,4.20831632,79.22,79.182,0.94148002]
[1770952769698,4.20831632,79.21,79.182,0.94148002]
[1770952771177,0.91958549,79.209,79.184,0.97066633]
[1770952772695,0.91958549,79.219,79.184,0.97066633]
[1770952774205,0.91958549,79.219,79.186,0.94088624]
[1770952776696,4.20831632,79.22,79.188,0.94088624]
[1770952777106,0.98990752,79.219,79.188,0.94088624]
[1770952777990,0.98990752,79.224,79.188,0.94088624]
[1770952778512,0.98990752,79.219,79.188,0.94088624]
[1770952780518,0.98990752,79.219,79.19,0.94088624]
[1770952782499,0.98990752,79.219,79.192,0.94088624]
[1770952784712,0.98990752,79.219,79.194,0.94088624]
[1770952785912,12.82158875,79.23,79.201,0.94088624]
[1770952785913,0.98990752,79.229,79.201,0.94088624]
[1770952786110,0.98990752,79.229,79.202,0.94088624]